bitfinex/quotes_ETHUSD_20250815
["timestamp","ask_amount","ask_price","bid_price","bid_amount"]
[1755301161882,0.002,4433.5,4433.3,0.45485]
[1755301162374,0.002,4433.5,4433.4,0.5764]
[1755301163153,0.002,4433.5,4433.3,0.45485]
[1755301163354,0.002,4433.5,4433.4,3.914185]
[1755301163568,0.5989,4433.5,4433.4,3.517]
[1755301164064,1.0526,4433.5,4432.5,0.001]
[1755301164372,0.002,4433.5,4432.6,4.0934]
[1755301165185,0.002,4433.5,4432.7,3.0]
[1755301165390,0.002,4433.5,4433.4,0.1128]
[1755301165601,0.002,4433.5,4433.4,3.6298]
[1755301166704,0.4557,4433.5,4433.4,3.6298]
[1755301167068,1.0526,4433.5,4433.4,3.6298]
[1755301167675,0.4557,4433.5,4433.4,3.6298]
[1755301170620,0.4557,4433.5,4433.4,0.1128]
[1755301170621,1.0526,4433.5,4433.4,0.1128]
[1755301171909,1.53099893,4433.5,4433.4,0.1128]
[1755301172110,1.53099893,4433.5,4432.9,0.1128]
[1755301172290,0.48039893,4433.5,4432.9,0.1128]
[1755301172493,0.9,4433.1,4432.9,0.1128]
[1755301172880,1.0506,4433.0,4432.9,0.1128]
[1755301177616,1.0506,4433.0,4432.6,3.517]
[1755301177617,1.0506,4433.0,4432.6,0.001]
[1755301177918,1.0314,4432.9,4432.6,0.001]
[1755301178419,1.0314,4432.8,4432.6,0.001]
[1755301178901,1.0314,4432.7,4432.6,0.001]
[1755301185914,1.1442,4432.7,4432.6,0.001]
[1755301186117,1.25862,4432.7,4432.6,0.001]
[1755301187913,18.71202673,4432.7,4432.6,0.001]
[1755301188345,19.26202673,4432.7,4432.6,0.001]
[1755301189548,3.0,4432.7,4432.6,0.001]
[1755301189942,1.0314,4433.3,4432.6,0.001]
[1755301190446,0.4471,4433.3,4432.6,0.001]
[1755301190650,0.002,4433.5,4432.6,0.5449]
[1755301191178,3.002,4433.5,4432.6,0.5449]
[1755301191549,0.002,4433.5,4432.7,0.02255961]
[1755301191848,0.002,4433.5,4432.6,0.9968]
[1755301192048,0.002,4433.5,4432.6,0.5449]
[1755301192851,0.002,4433.5,4432.6,0.001]
[1755301193056,1.0314,4433.4,4432.6,0.001]
[1755301193229,0.4471,4433.3,4432.6,0.001]
[1755301195961,0.9,4432.9,4432.6,0.001]
[1755301196163,3.9,4432.9,4432.6,0.001]
[1755301197428,4.3471,4432.9,4432.6,0.001]
[1755301197856,1.0314,4432.8,4432.6,0.001]
[1755301198057,0.9,4432.9,4432.6,0.001]
[1755301198257,0.9,4432.9,4432.7,0.5439]
[1755301198443,0.9,4432.9,4432.8,0.5439]
[1755301198646,3.002,4433.5,4432.8,0.5439]
[1755301198844,0.002,4433.5,4432.6,0.001]
[1755301199082,0.4471,4433.4,4432.6,0.001]
[1755301199235,0.002,4433.5,4432.6,0.001]
[1755301199640,0.002,4433.5,4433.1,0.1128]
[1755301200259,0.002,4433.5,4433.4,0.1128]
[1755301201153,1.3491,4433.5,4433.4,0.1128]
[1755301201470,4.9334,4433.5,4432.7,0.1128]
[1755301201671,3.0,4432.8,4432.7,0.1128]
[1755301202038,4.0314,4432.8,4432.7,0.1128]
[1755301203873,4.0314,4432.8,4432.6,0.001]
[1755301204050,3.0,4432.8,4432.6,0.001]
[1755301204246,1.0314,4432.7,4432.6,0.001]
[1755301205693,0.4471,4432.7,4432.6,0.001]
[1755301205851,1.0314,4432.7,4432.6,0.001]
[1755301206776,1.0293,4432.7,4432.6,0.001]
[1755301207770,1.5793,4432.7,4432.6,0.001]
[1755301211592,5.0913,4432.7,4432.6,0.001]
[1755301211800,5.5692459,4432.7,4432.6,0.001]
[1755301211999,8.5692459,4432.7,4432.6,0.001]
[1755301212769,23.02777508,4432.7,4432.6,0.001]
[1755301214480,15.17030251,4432.7,4432.6,0.001]
[1755301214709,3.55,4432.6,4432.1,0.001]
[1755301214916,10.26385661,4432.2,4432.1,0.001]
[1755301215221,13.77585661,4432.2,4432.1,0.001]
[1755301215395,14.20545661,4432.2,4432.1,0.001]
[1755301215921,10.26385661,4432.2,4432.1,0.001]
[1755301216091,14.20545661,4432.2,4432.1,0.001]
[1755301216291,14.78765661,4432.2,4432.1,0.001]
[1755301216596,14.20545661,4432.2,4432.1,0.001]
[1755301218732,16.46167248,4432.2,4432.1,0.001]
[1755301220297,16.36167248,4432.2,4432.1,0.001]
[1755301221634,16.94387248,4432.2,4432.1,0.001]
[1755301223239,16.94387248,4432.2,4431.7,0.001]
[1755301223240,2.80641951,4431.8,4431.7,0.001]
[1755301223436,2.80667411,4431.3,4431.2,0.001]
[1755301223732,8.85773072,4431.3,4431.2,0.001]
[1755301223907,8.85773072,4431.3,4431.2,0.5761]
[1755301223908,0.1128,4431.3,4431.2,0.5761]
[1755301224759,3.0,4431.6,4431.2,1.0348]
[1755301224960,3.0,4431.6,4431.2,0.001]
[1755301225147,3.0,4431.6,4431.3,1.0338]
[1755301225343,3.0,4431.6,4431.4,0.5751]
[1755301225542,3.0,4431.6,4431.5,0.5751]
[1755301225733,10.11205661,4432.0,4431.5,1.0338]
[1755301225927,3.0,4431.9,4431.6,1.0338]
[1755301226127,3.0,4431.9,4431.4,0.1128]
[1755301226128,6.71385661,4432.0,4431.7,1.0338]
[1755301226332,6.60105661,4432.4,4431.8,1.0338]
[1755301226566,6.60105661,4432.4,4431.9,1.0338]
[1755301226743,6.60105661,4432.4,4432.0,1.0338]
[1755301226943,3.0,4432.3,4432.1,1.0338]
[1755301227167,6.60105661,4432.4,4432.1,0.4587]
[1755301227361,6.60105661,4432.4,4432.2,1.0338]
[1755301227560,6.60105661,4432.4,4432.3,0.5751]
[1755301227936,0.002,4432.8,4432.3,1.1466]
[1755301228132,0.002,4432.8,4432.3,2.48361276]
[1755301228353,0.002,4432.8,4432.6,0.1128]
[1755301228561,0.002,4432.8,4432.7,2.25596137]
[1755301228755,0.002,4432.8,4432.7,3.28976137]
[1755301229147,0.002,4432.8,4432.7,2.94386137]
[1755301229342,0.002,4432.8,4432.7,3.46385352]
[1755301229863,0.002,4432.8,4432.7,3.40256137]
[1755301231064,0.002,4432.8,4432.7,2.36876137]
[1755301231271,0.002,4432.8,4432.1,3.29003072]
[1755301231568,6.60105661,4432.7,4432.5,0.1128]
[1755301231868,6.60105661,4432.7,4432.5,2.36885973]
[1755301232171,6.60105661,4432.7,4432.5,2.94395973]
[1755301232470,6.60105661,4432.7,4432.6,2.25601227]
[1755301232667,0.002,4432.8,4432.7,2.25596137]
[1755301233069,0.002,4432.8,4432.7,2.83106137]
[1755301233840,0.002,4432.8,4432.7,3.39692691]
[1755301234042,0.002,4432.8,4432.7,3.85562691]
[1755301234939,0.002,4432.8,4432.7,7.36462691]
[1755301237576,0.002,4432.8,4432.7,6.90592691]
[1755301237749,0.002,4432.8,4432.7,0.56586554]
[1755301237954,0.002,4432.8,4432.7,2.25596137]
[1755301242578,0.002,4432.8,4432.7,2.78106137]
[1755301242762,0.002,4432.8,4432.7,3.22316137]
[1755301243381,0.002,4432.8,4432.7,3.33596137]
[1755301243593,0.002,4432.8,4432.7,4.24606317]
[1755301244361,0.002,4432.8,4432.7,4.26862278]
[1755301244705,0.002,4432.8,4432.7,4.24606317]
[1755301248493,0.002,4432.8,4432.7,3.80396317]
[1755301248896,0.002,4432.8,4432.7,3.27886317]
[1755301249066,0.002,4432.8,4432.7,5.87476137]
[1755301257413,0.002,4432.8,4432.7,6.39986137]
[1755301259887,0.002,4432.8,4432.7,6.84196137]
[1755301261391,0.002,4432.8,4432.7,2.36876137]
[1755301261593,0.002,4432.8,4432.7,5.75996137]
[1755301262915,0.002,4432.8,4432.7,2.25596137]
[1755301263120,0.4501,4432.8,4432.7,5.75996137]
[1755301263505,0.4501,4432.8,4432.7,2.25596137]
[1755301263710,1.0101,4432.8,4432.7,5.75996137]
[1755301264015,0.4501,4432.8,4432.7,5.75996137]
[1755301264588,0.002,4432.8,4432.7,5.75996137]
[1755301267334,0.002,4432.8,4432.7,6.56156317]
[1755301269517,0.002,4433.2,4432.7,6.56156317]
[1755301269689,0.002,4433.2,4432.8,1.0082]
[1755301269902,0.002,4433.2,4433.1,2.25575782]
[1755301270089,0.002,4433.2,4433.1,5.75875782]
[1755301270290,0.002,4433.2,4433.1,6.66103956]
[1755301270494,0.002,4433.2,4433.1,7.19533956]
[1755301271014,0.002,4433.2,4433.1,6.66103956]
[1755301271328,0.4306,4433.2,4432.7,0.8016018]
[1755301271532,7.03165661,4433.2,4433.1,0.1128]
[1755301271733,0.4306,4433.2,4433.1,5.87155782]
[1755301271929,0.4306,4433.2,4433.1,2.36855782]
[1755301272110,0.4306,4433.2,4433.1,0.1128]
[1755301272111,0.9623,4433.2,4433.1,0.1128]
[1755301272299,0.9623,4433.2,4433.1,2.36855782]
[1755301272628,0.4306,4433.2,4433.1,2.36855782]
[1755301273224,0.9623,4433.2,4433.1,0.1128]
[1755301274123,0.9623,4433.2,4433.1,2.36855782]
[1755301274431,0.4306,4433.2,4433.1,2.36855782]
[1755301274637,0.002,4433.2,4433.1,2.36855782]
[1755301274819,0.4306,4433.2,4433.1,0.1128]
[1755301275134,7.56335661,4433.2,4433.0,3.502]
[1755301275350,7.56335661,4433.2,4432.9,0.1128]
[1755301275351,5.2558087,4433.0,4432.9,0.1128]
[1755301275502,5.2558087,4433.0,4431.4,2.25657305]
[1755301275503,5.2558087,4433.0,4432.8,3.502]
[1755301275826,6.60305661,4433.2,4432.8,3.502]
[1755301275827,12.8172162,4432.9,4432.8,3.502]
[1755301276344,2.25591048,4432.8,4432.1,0.001]
[1755301276547,6.60105661,4432.2,4432.1,0.001]
[1755301276840,7.56135661,4432.2,4432.1,3.503]
[1755301277208,7.56135661,4432.2,4432.1,0.001]
[1755301277914,10.71757248,4432.2,4432.1,0.001]
[1755301278109,14.26757248,4432.2,4432.1,0.001]
[1755301278737,2.25647042,4431.7,4431.6,0.001]
[1755301278916,11.85752703,4431.7,4431.6,0.001]
[1755301279258,12.81782703,4431.7,4431.6,0.001]
[1755301279454,12.93062703,4431.7,4431.6,0.001]
[1755301280300,13.48062703,4431.7,4431.6,0.001]
[1755301280501,46.98262703,4431.7,4431.6,0.001]
[1755301280703,46.98575941,4431.7,4431.6,0.001]
[1755301282060,54.84783179,4431.7,4431.6,0.001]
[1755301282231,2.80667411,4431.3,4431.2,0.001]
[1755301282424,9.42147411,4431.3,4431.2,0.001]
[1755301282618,10.38177411,4431.3,4431.2,0.001]
[1755301283954,6.76697411,4431.3,4431.2,0.001]
[1755301284152,3.4286,4431.3,4431.2,0.001]
[1755301284951,3.0,4431.3,4431.2,0.001]
[1755301285123,3.1128,4431.4,4431.2,0.001]
[1755301285325,17.15134529,4431.7,4431.2,0.001]
[1755301285326,0.1128,4431.7,4431.2,0.001]
[1755301285523,0.4286,4432.2,4431.3,0.5343]
[1755301285741,3.0,4432.1,4431.2,0.001]
[1755301285943,2.25641081,4431.9,4431.2,0.001]
[1755301286130,2.68492851,4432.0,4431.2,2.25772176]
[1755301286735,2.68492851,4432.0,4431.3,2.25667203]
[1755301287441,2.25643777,4431.8,4431.2,0.001]
[1755301287649,2.25637456,4431.9,4431.2,0.001]
[1755301287846,0.9,4431.4,4431.2,0.001]
[1755301288026,0.9,4431.4,4431.3,2.79097411]
[1755301289851,0.9,4431.4,4431.3,2.25667411]
[1755301290134,1.3286,4431.4,4431.3,3.502]
[1755301291823,1.8603,4431.4,4431.3,3.502]
[1755301292226,1.8603,4431.4,4431.2,0.001]
[1755301292465,0.9603,4431.3,4431.2,0.001]
[1755301292847,15.36626137,4431.4,4431.2,0.001]
[1755301293065,0.4286,4431.3,4431.2,0.001]
[1755301294040,3.21697411,4431.3,4431.2,0.001]
[1755301294245,6.21697411,4431.3,4431.2,0.001]
[1755301295231,6.76697411,4431.3,4431.2,0.001]
[1755301295547,6.87977411,4431.3,4431.2,0.001]
[1755301298336,10.38077411,4431.3,4431.2,0.001]
[1755301302688,24.84717444,4431.3,4431.2,0.001]
[1755301303000,24.31547444,4431.3,4431.2,0.001]
[1755301303202,24.78949644,4431.3,4431.2,0.001]
[1755301303373,16.92697285,4431.3,4431.2,0.001]
[1755301303704,16.45675085,4431.3,4431.2,0.001]
[1755301303902,16.93057357,4431.3,4431.2,0.001]
[1755301304393,17.48557357,4431.3,4431.2,0.001]
[1755301307498,16.93057357,4431.3,4431.2,0.001]
[1755301311219,16.93057357,4431.3,4430.7,0.001]
[1755301311220,5.80692877,4430.8,4430.7,0.001]
[1755301311404,15.91080551,4430.8,4430.7,0.001]
[1755301311584,17.48482823,4430.8,4430.7,0.001]
[1755301312383,2.80713253,4430.4,4430.3,0.001]
[1755301312603,9.41993253,4430.4,4430.3,0.001]
[1755301312919,10.32615525,4430.4,4430.3,0.001]
[1755301313120,40.32615525,4430.4,4430.3,0.001]
[1755301313486,39.89375525,4430.4,4430.3,0.001]
[1755301314629,36.39375525,4430.4,4430.3,0.001]
[1755301314984,43.98503199,4430.4,4430.3,0.001]
[1755301316020,42.99763199,4430.4,4430.3,0.001]
[1755301317532,12.99763199,4430.4,4430.3,0.001]
[1755301318426,3.47382272,4430.4,4430.3,0.5531]
[1755301318746,5.25713253,4430.4,4430.3,0.5531]
[1755301319125,11.86100927,4430.4,4430.3,0.5531]
[1755301319314,13.31723199,4430.4,4430.3,0.001]
[1755301319515,47.37123199,4430.4,4430.3,0.001]
[1755301320448,3.47382272,4430.4,4430.3,0.001]
[1755301320652,0.47382272,4431.0,4430.3,1.0096]
[1755301320852,0.9,4431.4,4431.0,2.25681019]
[1755301321023,0.9,4431.4,4431.1,1.0086]
[1755301321208,0.9,4431.4,4431.2,0.5521]
[1755301321405,2.25853051,4431.6,4431.3,0.5521]
[1755301321645,2.25661663,4431.5,4431.3,0.5521]
[1755301321937,5.25661663,4431.5,4431.3,0.5521]
[1755301322140,0.47687708,4431.6,4431.0,2.2568269]
[1755301322324,0.002,4431.6,4431.4,0.5521]
[1755301322509,3.002,4431.6,4431.4,0.5521]
[1755301323415,2.25854097,4431.6,4431.1,0.4565]
[1755301323616,3.0,4431.3,4430.3,4.0511]
[1755301323826,3.0,4431.3,4430.3,0.001]
[1755301323827,6.60387674,4430.5,4430.3,0.001]
[1755301324855,5.80713253,4430.4,4430.3,0.001]
[1755301325049,6.23953253,4430.4,4430.3,0.001]
[1755301325815,5.80713253,4430.4,4430.3,0.001]
[1755301326144,2.25703096,4430.6,4430.3,0.5531]
[1755301326347,11.86085744,4430.7,4430.3,0.001]
[1755301326543,11.86085744,4430.7,4430.3,0.5409]
[1755301326844,2.25704098,4430.6,4430.3,0.5409]
[1755301327009,9.60387674,4430.7,4430.3,0.001]
[1755301327211,13.10187674,4431.2,4430.4,0.9921]
[1755301327417,9.60387674,4431.2,4430.5,0.5399]
[1755301327721,11.86060976,4431.2,4430.5,0.5399]
[1755301328025,2.25679339,4431.1,4430.5,0.5399]
[1755301328221,2.25677596,4431.1,4430.5,0.5399]
[1755301328428,0.1128,4430.9,4430.5,0.5399]
[1755301328623,0.1128,4430.9,4430.6,0.5399]
[1755301329024,0.1128,4430.9,4430.5,0.4522]
[1755301329224,0.1128,4430.9,4430.7,0.5399]
[1755301329630,0.1128,4430.9,4430.5,0.4522]
[1755301329631,0.1128,4430.9,4430.8,0.5399]
[1755301330534,2.36967783,4430.9,4430.8,0.5399]
[1755301330938,2.36967783,4430.9,4430.3,0.001]
[1755301330939,0.55,4430.7,4430.3,0.001]
[1755301331138,2.36993253,4430.4,4430.3,0.001]
[1755301332352,2.91993253,4430.4,4430.3,0.001]
[1755301332528,6.89273253,4430.4,4430.3,0.001]
[1755301334249,6.37673253,4430.4,4430.3,0.001]
[1755301334946,5.91993253,4430.4,4430.3,0.001]
[1755301337857,6.37673253,4430.4,4430.3,0.001]
[1755301338054,5.91993253,4430.4,4430.3,0.001]
[1755301338768,6.37673253,4430.4,4430.3,0.001]
[1755301339184,9.87273253,4430.4,4430.3,0.001]
[1755301339380,10.86396717,4430.4,4430.3,0.001]
[1755301341232,13.24196717,4430.4,4430.3,0.001]
[1755301341559,10.86396717,4430.4,4430.3,0.001]
[1755301344357,6.39516717,4430.4,4430.3,0.001]
[1755301344558,7.08403464,4430.4,4430.3,0.001]
[1755301344764,5.36993253,4430.4,4430.3,0.5409]
[1755301345074,5.91993253,4430.4,4430.3,0.5409]
[1755301345559,0.1128,4430.4,4430.3,0.5409]
[1755301345888,0.1128,4430.5,4430.3,0.9931]
[1755301346181,0.1128,4430.5,4430.4,0.5399]
[1755301347186,2.25713253,4430.4,4430.3,0.001]
[1755301347351,5.80713253,4430.4,4430.3,0.001]
[1755301347551,9.75893253,4430.4,4430.3,0.001]
[1755301347764,9.30213253,4430.4,4430.3,0.001]
[1755301349584,5.80713253,4430.4,4430.3,0.001]
[1755301349985,6.77993253,4430.4,4430.3,0.001]
[1755301350200,7.25530787,4430.4,4430.3,0.001]
[1755301350698,21.72950611,4430.4,4430.3,0.001]
[1755301351381,7.25530787,4430.4,4430.3,0.001]
[1755301351581,13.86285593,4430.4,4430.3,0.001]
[1755301352265,13.34685593,4430.4,4430.3,0.001]
[1755301352664,13.34649821,4430.4,4430.3,0.001]
[1755301353196,13.86249821,4430.4,4430.3,0.001]
[1755301353375,21.72797515,4430.4,4430.3,0.001]
[1755301354159,51.72797515,4430.4,4430.3,0.001]
[1755301354366,52.32120494,4430.4,4430.3,0.001]
[1755301354561,0.55,4430.2,4429.8,0.001]
[1755301354809,6.51415771,4429.9,4429.8,0.001]
[1755301355013,40.48353305,4429.9,4429.8,0.001]
[1755301355177,41.45633305,4429.9,4429.8,0.001]
[1755301355499,40.86236263,4429.9,4429.8,0.001]
[1755301356092,41.45633305,4429.9,4429.8,0.001]
[1755301356331,40.86236263,4429.9,4429.8,0.001]
[1755301356802,5.80759115,4429.5,4429.3,0.001]
[1755301357006,23.77425843,4429.5,4429.3,0.001]
[1755301357170,25.24013377,4429.5,4429.3,0.001]
[1755301357374,3.55,4429.4,4428.4,0.001]
[1755301357574,5.80810093,4428.5,4428.4,0.001]
[1755301357773,53.88756821,4428.5,4428.4,0.001]
[1755301357996,55.35344355,4428.5,4428.4,0.001]
[1755301358582,2.80825391,4428.2,4428.1,0.04]
[1755301358783,39.41505391,4428.2,4428.1,0.04]
[1755301358998,40.88092925,4428.2,4428.1,0.04]
[1755301360406,10.88092925,4428.2,4428.1,0.04]
[1755301360607,24.81729653,4428.2,4428.1,0.04]
[1755301360785,55.35359653,4428.2,4428.1,0.04]
[1755301361689,54.36309653,4428.2,4428.1,0.04]
[1755301361889,53.88772119,4428.2,4428.1,0.04]
[1755301362519,54.34192119,4428.2,4428.1,0.04]
[1755301362910,54.81532602,4428.2,4428.1,0.04]
[1755301363106,55.35162602,4428.2,4428.1,0.04]
[1755301363311,55.35141704,4428.2,4428.1,0.04]
[1755301363489,55.35140905,4428.2,4428.1,0.04]
[1755301363833,54.87822119,4428.2,4428.1,0.04]
[1755301364022,53.88772119,4428.2,4428.1,0.04]
[1755301364515,54.34192119,4428.2,4428.1,0.04]
[1755301364723,53.88772119,4428.2,4428.1,0.04]
[1755301367398,8.75225391,4428.2,4428.1,0.5539]
[1755301367618,3.494,4428.3,4428.1,1.0112]
[1755301367951,2.25814991,4428.5,4428.2,0.9712]
[1755301368116,2.25814991,4428.5,4428.1,0.04]
[1755301368117,3.0,4428.4,4428.1,0.04]
[1755301368317,5.25815604,4428.4,4428.3,0.9712]
[1755301369110,2.25789699,4428.9,4428.3,0.9712]
[1755301369426,3.494,4428.8,4428.4,0.9712]
[1755301369608,3.494,4428.7,4428.5,0.9712]
[1755301369815,14.47266728,4429.6,4428.6,0.9712]
[1755301370044,35.75159715,4429.5,4428.7,0.9712]
[1755301370356,2.25789699,4428.9,4428.1,2.29828932]
[1755301370650,3.0,4429.2,4428.4,0.5139]
[1755301370651,3.494,4428.8,4428.4,0.5139]
[1755301370852,3.494,4428.8,4428.2,2.25824682]
[1755301371041,3.494,4428.8,4428.5,0.9712]
[1755301371219,3.494,4428.8,4428.5,0.4573]
[1755301371419,3.494,4428.8,4428.6,0.9712]
[1755301371619,3.494,4428.8,4428.7,0.5139]
[1755301371820,3.494,4428.8,4428.7,0.9712]
[1755301372045,3.494,4428.9,4428.7,0.9712]
[1755301372245,3.494,4428.9,4428.8,0.5139]
[1755301372460,2.25780697,4429.1,4428.8,0.9712]
[1755301372614,3.493,4429.2,4428.9,3.22909699]
[1755301372820,1.73065721,4430.6,4429.0,0.9712]
[1755301373151,2.25744184,4429.8,4429.1,0.9712]
[1755301373352,5.75049718,4429.7,4429.2,0.9712]
[1755301373576,3.493,4429.7,4429.3,0.9712]
[1755301373734,3.0,4429.6,4429.0,2.25784517]
[1755301373933,3.0,4429.6,4429.4,0.9712]
[1755301374176,0.65106015,4430.9,4429.5,0.5139]
[1755301374464,0.55,4430.2,4429.5,0.9712]
[1755301374645,3.0,4430.0,4429.5,0.9712]
[1755301374821,2.25739317,4429.9,4429.6,0.5139]
[1755301375172,6.493,4429.8,4429.6,0.5139]
[1755301375374,6.493,4429.8,4429.7,0.5139]
[1755301376372,6.493,4429.8,4428.7,0.001]
[1755301376576,2.25753152,4429.7,4429.0,0.5139]
[1755301376880,3.493,4429.6,4429.0,0.5139]
[1755301377453,2.257773,4429.2,4428.7,0.001]
[1755301377779,3.6048,4429.1,4428.7,0.001]
[1755301378145,3.6048,4429.1,4428.8,0.5139]
[1755301378645,3.6048,4429.1,4428.9,0.5139]
[1755301380057,1.73065721,4430.6,4429.0,0.5139]
[1755301380267,0.1128,4429.6,4429.0,0.5139]
[1755301380583,3.0,4429.4,4429.0,0.5139]
[1755301380788,3.0,4429.4,4429.1,0.5139]
[1755301380987,3.0,4429.4,4429.0,0.4573]
[1755301381287,3.0,4429.4,4429.2,0.5139]
[1755301382109,2.25983674,4429.1,4428.7,0.001]
[1755301382282,2.25794797,4428.8,4428.7,0.001]
[1755301382593,9.41274797,4428.8,4428.7,0.001]
[1755301382895,2.80820292,4428.3,4428.1,0.041]
[1755301383101,5.80825391,4428.2,4428.1,0.041]
[1755301383265,0.55,4428.1,4426.8,0.001]
[1755301383595,5.80866196,4427.4,4426.8,0.001]
[1755301383796,9.41346196,4427.4,4426.8,0.001]
[1755301384290,9.86766196,4427.4,4426.8,0.001]
[1755301385190,2.258764,4427.2,4426.8,0.001]
[1755301385371,38.749764,4427.2,4426.8,0.001]
[1755301385704,39.740264,4427.2,4426.8,0.001]
[1755301386808,38.749764,4427.2,4426.8,0.001]
[1755301386973,0.55,4427.0,4426.8,0.001]
[1755301387174,33.0,4427.1,4426.8,0.001]
[1755301387175,39.41371707,4426.9,4426.8,0.001]
[1755301387568,40.36721707,4426.9,4426.8,0.001]
[1755301387778,35.92171707,4426.9,4426.8,0.001]
[1755301387979,39.41371707,4426.9,4426.8,0.001]
[1755301388991,33.1128,4426.9,4426.8,0.001]
[1755301389172,3.6048,4426.9,4426.8,0.5214]
[1755301389372,3.6048,4426.9,4426.8,0.001]
[1755301389601,9.30631707,4426.9,4426.8,0.001]
[1755301389810,40.36721707,4426.9,4426.8,0.001]
[1755301389971,39.85631707,4426.9,4426.8,0.001]
[1755301390401,39.41371707,4426.9,4426.8,0.001]
[1755301390564,33.6628,4426.9,4426.8,0.001]
[1755301390768,6.6048,4426.9,4426.8,0.001]
[1755301391099,6.6048,4426.9,4426.8,0.5214]
[1755301391265,6.6048,4426.9,4426.8,0.9756]
[1755301391467,3.1128,4426.9,4426.8,0.9756]
[1755301391664,3.492,4427.1,4426.8,0.9756]
[1755301391868,3.492,4427.5,4427.0,2.25882631]
[1755301392094,3.1128,4427.4,4427.1,0.9746]
[1755301392496,3.1128,4427.4,4427.2,0.5204]
[1755301393399,14.47266728,4428.6,4427.3,0.9746]
[1755301393567,0.1128,4428.0,4427.4,2.25866196]
[1755301393766,3.6048,4428.0,4427.4,2.77906196]
[1755301393967,3.0,4427.9,4427.4,0.5204]
[1755301394408,3.0,4427.9,4427.5,0.5204]
[1755301394606,3.6048,4428.0,4427.6,0.5204]
[1755301394790,0.4426,4429.0,4427.7,0.9746]
[1755301394990,0.4426,4429.0,4427.7,1.0874]
[1755301394991,0.1128,4428.3,4427.7,1.0874]
[1755301395197,3.1128,4428.3,4427.7,3.34586759]
[1755301396471,0.1128,4428.6,4428.0,0.1128]
[1755301396696,0.002,4429.1,4428.2,2.25825391]
[1755301396697,3.492,4428.8,4428.2,2.25825391]
[1755301396906,3.492,4428.8,4428.3,1.0874]
[1755301397094,0.002,4429.1,4428.3,1.0874]
[1755301397409,0.1148,4429.1,4428.4,3.23275192]
[1755301397593,0.002,4429.1,4428.4,0.9746]
[1755301397804,0.002,4429.1,4429.0,2.25784601]
[1755301398182,0.002,4429.1,4429.0,3.23244601]
[1755301401121,0.002,4429.1,4429.0,2.77824601]
[1755301401431,0.002,4429.1,4429.0,3.23244601]
[1755301402521,0.002,4429.1,4429.0,2.77824601]
[1755301403711,0.002,4429.1,4429.0,3.23244601]
[1755301403915,0.002,4429.1,4429.0,3.79276465]
[1755301404855,0.002,4429.1,4429.0,7.28376465]
[1755301405141,0.002,4429.1,4429.0,7.39656465]
[1755301405365,0.002,4429.1,4429.0,0.67311864]
[1755301405505,0.002,4429.1,4429.0,0.1128]
[1755301405704,0.002,4429.1,4428.5,3.6028]
[1755301405945,0.002,4429.1,4428.5,0.1128]
[1755301406644,0.002,4429.1,4429.0,0.1128]
[1755301419277,30.0,4429.0,4427.1,0.001]
[1755301419439,2.25836331,4428.0,4427.4,0.1128]
[1755301419633,5.25795863,4428.8,4427.8,2.25841861]
[1755301419634,0.1128,4428.1,4427.8,2.25841861]
[1755301419952,3.49,4428.6,4427.3,3.491]
[1755301419953,3.0,4428.5,4427.9,0.1128]
[1755301420153,0.1128,4428.3,4427.7,0.1128]
[1755301420468,2.72288379,4428.2,4427.7,0.1128]
[1755301420629,0.4646,4428.1,4427.7,0.1128]
[1755301420833,0.4646,4428.0,4427.3,0.001]
[1755301421130,2.25847264,4427.8,4427.5,0.1128]
[1755301421776,2.25841019,4427.9,4427.5,0.1128]
[1755301422856,2.2584596,4427.8,4427.5,0.1128]
[1755301423164,3.1128,4428.3,4427.5,0.1128]
[1755301423383,3.1128,4428.3,4427.3,0.001]
[1755301423384,2.25866196,4427.4,4427.3,0.001]
[1755301424769,5.72326196,4427.4,4427.3,0.001]
[1755301424938,6.22196196,4427.4,4427.3,0.001]
[1755301427106,21.24462924,4427.4,4427.3,0.001]
[1755301427689,22.14462924,4427.4,4427.3,0.001]
[1755301427991,52.14462924,4427.4,4427.3,0.001]
[1755301428490,52.34462924,4427.4,4427.3,0.001]
[1755301430292,55.83462924,4427.4,4427.3,0.001]
[1755301431196,36.35866196,4427.4,4427.3,0.001]
[1755301431372,9.84866196,4427.4,4427.3,0.001]
[1755301431881,10.39866196,4427.4,4427.3,0.001]
[1755301432711,1.1,4427.4,4427.3,0.4771]
[1755301432874,1.1,4427.4,4427.3,0.001]
[1755301433065,1.5646,4427.4,4427.3,0.001]
[1755301433997,3.82326196,4427.4,4427.3,0.001]
[1755301434495,1.5646,4427.4,4427.3,0.001]
[1755301434696,1.1,4427.4,4427.3,0.001]
[1755301435196,4.1,4427.4,4427.3,0.001]
[1755301436311,6.35866196,4427.4,4427.3,0.001]
[1755301436683,4.1,4427.4,4427.3,0.001]
[1755301437719,6.35866196,4427.4,4427.3,0.001]
[1755301437926,4.1,4427.4,4427.3,0.001]
[1755301438128,4.1,4427.4,4427.3,1.001]
[1755301439406,6.35866196,4427.4,4427.3,1.001]
[1755301440085,4.1,4427.4,4427.3,1.001]
[1755301441429,7.98476196,4427.4,4427.3,1.001]